[Event "World U20-ch22"]
[Site "Belfort"]
[Date "1983.08.14"]
[Round "3"]
[White "Stohl, Igor"]
[Black "Georgiev, Kiril"]
[Result "1/2-1/2"]
[ECO "D58"]
[WhiteElo "2335"]
[BlackElo "2410"]
[Annotator "Bulletin/Primel,D"]
[PlyCount "84"]
[EventDate "1983.08.12"]
[EventType "swiss"]
[EventRounds "13"]
[EventCountry "FRA"]
[SourceTitle "EXT 2004"]
[Source "ChessBase"]
[SourceDate "2003.11.25"]
[SourceVersion "1"]
[SourceVersionDate "2003.11.25"]
[SourceQuality "1"]
[TimeControl "40/9000:16/5400:0"]

1. Nf3 d5 2. c4 e6 3. d4 Nf6 4. Bg5 Be7 5. Nc3 O-O 6. e3 h6 7. Bh4 b6 8. Qc2
Bb7 9. Rd1 Nbd7 10. cxd5 Nxd5 (10... exd5 11. Bd3) 11. Bg3 c5 12. Bb5 (12. Nxd5
exd5 13. dxc5 bxc5 14. Be2 Qa5+ 15. Nd2 Ba6 16. b4 cxb4 17. Nb3 Qb6 18. Rxd5
Rac8 19. Qd2 Bxe2 20. Rxd7 Bb5 21. Rxe7 Rfd8 22. Nd4 Qg6 23. Qd1 Rxd4 24. exd4
Qc6 25. f3 Qc3+ 26. Qd2 Qa3 {Romanishin,O (2595)-Geller,E (2615)/Moscow 1981/
EXT 2002/1-0}) 12... N7f6 13. dxc5 {[%cal Gd1d8]} Qc8 $1 (13... bxc5 14. O-O {
[%cal Ge3e4,Gd1d8]}) 14. Bd6 (14. c6 Nb4 {[%cal Gb4c6,Gb4c2]}) (14. cxb6 axb6
$44 {[%csl Re1][%cal Ga8a2]}) 14... Bxd6 15. cxd6 Rd8 16. O-O Rxd6 $11 17. Ba4
Ba6 18. Nxd5 Rxd5 19. Rxd5 Qxc2 20. Bxc2 Nxd5 21. Rd1 Rc8 22. Bb3 Be2 $1 {
Assure une bonne finale aux Noirs} 23. Re1 Bxf3 24. gxf3 Kf8 25. Rd1 Nf6 {
Avec la nullité conclue au 42ème coup (suite non disponible)} (25... Ke7 $5 26.
Bxd5 exd5 27. Rxd5 Rc2 28. Rb5 Kd6 $44) 26. f4 Ke7 27. Kg2 g5 (27... Ne4 28.
Kf3 Nc5) 28. fxg5 hxg5 {[%csl Rh2]} 29. Rd4 Nd7 30. Rg4 Rc5 31. Rc4 $1 {
Après l'échange des R, le B sera un peu meilleur que le N} f5 32. Kg3 Nf6 33.
f3 e5 34. Rxc5 bxc5 35. h4 $1 Nh5+ 36. Kh3 f4 37. hxg5 fxe3 38. Kg2 Nf4+ 39.
Kf1 Kf8 40. g6 Kg7 41. Bc2 Kf6 42. Be4 Kg7 1/2-1/2

[Event "Khanty-Mansiysk FIDE GP (Women)"]
[Site "Khanty-Mansiysk"]
[Date "2014.04.17"]
[Round "8"]
[White "Ushenina, Anna"]
[Black "Kosintseva, Tatiana"]
[Result "1-0"]
[ECO "D58"]
[WhiteElo "2501"]
[BlackElo "2496"]
[Annotator "ChessBase Website"]
[PlyCount "107"]
[EventDate "2014.04.09"]
[EventType "tourn"]
[EventRounds "11"]
[EventCountry "RUS"]
[EventCategory "10"]
[SourceTitle "CBM 160"]
[Source "ChessBase"]
[SourceDate "2014.05.15"]
[SourceVersion "1"]
[SourceVersionDate "2014.05.15"]
[SourceQuality "1"]
[TimeControl "40/5400+30:1800+30"]
[WhiteClock "1:30:00"]
[BlackClock "1:30:00"]

1. d4 {[%emt 0:00:00]} d5 {[%emt 0:00:00]} 2. c4 {[%emt 0:00:00]} e6 {[%emt 0:
00:00]} 3. Nc3 {[%emt 0:01:42]} Be7 {[%emt 0:00:00]} 4. Nf3 {[%emt 0:01:59]}
Nf6 {[%emt 0:00:15]} 5. Bg5 {[%emt 0:01:27]} h6 {[%emt 0:00:17]} 6. Bh4 {
[%emt 0:00:20]} O-O {[%emt 0:00:26]} 7. e3 {[%emt 0:02:04]} b6 {[%emt 0:00:21]}
8. Be2 {[%emt 0:00:32]} Bb7 {[%emt 0:05:36]} 9. Bxf6 {[%emt 0:00:30]} Bxf6 {
[%emt 0:00:07]} 10. cxd5 {[%emt 0:00:08]} exd5 {[%emt 0:00:09]} 11. b4 {
[%emt 0:00:27]} c5 {[%emt 0:02:08]} 12. bxc5 {[%emt 0:00:10]} bxc5 {[%emt 0:00:
05]} 13. Rb1 {[%emt 0:00:06]} Bc6 {[%emt 0:00:36]} (13... Bc8 14. O-O Nc6 15.
Rc1 cxd4 16. Nb5 Qb6 17. Nbxd4 Nxd4 18. Nxd4 Bxd4 19. Qxd4 Qxd4 20. exd4 {
1/2-1/2 (20) Giri,A (2730)-Naiditsch,A (2712) Belgium 2013}) 14. Bb5 {[%emt 0:
01:27]} a6 {[%emt 0:11:33]} 15. Be2 $146 {[%emt 0:04:37]} (15. Bxc6 Nxc6 16.
O-O cxd4 {1/2-1/2 (16) Ivkov,B (2525)-Petrosian,A (2495) Sarajevo 1986}) 15...
Nd7 {[%emt 0:04:17]} 16. O-O {[%emt 0:00:07]} Qe7 {[%emt 0:07:58]} 17. Qd2 {
[%emt 0:03:08]} Rfd8 {[%emt 0:13:25]} 18. Rfd1 {[%emt 0:10:01]} g6 {[%emt 0:06:
00]} 19. dxc5 {[%emt 0:06:20]} Nxc5 {[%emt 0:02:13]} 20. Nd4 {[%emt 0:00:23]}
Be8 {[%emt 0:01:59]} 21. Bf3 {[%emt 0:08:53]} Qe5 {[%emt 0:08:59]} 22. Nce2 {
[%emt 0:03:51]} a5 {[%emt 0:03:21]} 23. Rb6 {[%emt 0:04:42]} Na4 {[%emt 0:07:
40]} 24. Rbb1 {[%emt 0:03:22]} Nc5 {[%emt 0:00:26]} 25. Rdc1 {[%emt 0:12:23]}
Ne4 {[%emt 0:02:58]} 26. Qd3 {[%emt 0:01:18]} Ng5 {[%emt 0:02:17]} 27. Ng3 {
[%emt 0:07:38]} Nxf3+ {[%emt 0:01:41]} 28. Nxf3 {[%emt 0:00:06]} Qe7 $11 {
[%emt 0:03:53][%csl Ge8,Gf6] The game was even all throughout, with Kosintseva
having compensation for her isolated pawn in the form of two bishops. An
interesting strategical struggle was marred by a horrible miscalculation by
the Russian player, who surely thought she was winning only to miss a mating
attack by her opponent.} 29. Nd4 {[%emt 0:00:06]} Bg7 {[%emt 0:00:58]} 30. h3 {
[%emt 0:02:05]} a4 {[%emt 0:01:05]} 31. Nge2 {[%emt 0:01:40]} Qe4 {[%emt 0:03:
13]} 32. Qd2 {[%emt 0:02:44]} Rac8 {[%emt 0:02:15]} 33. Nc3 {[%emt 0:03:28]}
Qe7 {[%emt 0:01:49]} 34. Ncb5 {[%emt 0:01:40]} Rc4 {[%emt 0:01:35]} 35. Qa5 {
[%emt 0:05:36]} Rdc8 {[%emt 0:03:19]} 36. Rxc4 {[%emt 0:00:34]} dxc4 {[%emt 0:
00:47]} 37. Nc3 {[%emt 0:05:47]} Kh7 {[%emt 0:01:59]} 38. Qa6 {[%emt 0:00:54]}
Qd8 {[%emt 0:01:39]} 39. Rd1 {[%emt 0:05:45]} Qc7 {[%emt 0:00:41]} 40. Ncb5 {
[%emt 0:00:00]} Bxb5 {[%emt 0:00:00]} 41. Nxb5 {[%emt 0:05:47]} Qc5 {[%emt 0:
20:58]} 42. Nd4 {[%emt 0:08:49]} c3 {[%emt 0:11:07]} 43. Qxa4 {[%emt 0:04:32]}
Rb8 {[%emt 0:00:04]} 44. Nb3 {[%emt 0:03:49]} Qf5 {[%emt 0:00:25]} 45. Rc1 {
[%emt 0:03:16]} Qd3 {[%emt 0:01:04]} 46. Qa7 {[%emt 0:02:55]} Rb5 {[%emt 0:00:
03]} 47. Kh2 {[%emt 0:04:10]} c2 {[%emt 0:01:08]} 48. Nd4 {[%emt 0:01:26]} Rb1
{[%emt 0:00:34]} 49. Rxc2 {[%emt 0:00:46]} Bxd4 {[%emt 0:00:28]} 50. Qxf7+ {
[%emt 0:00:24]} Bg7 {[%emt 0:00:01]} 51. Rc7 {[%emt 0:00:05]} Qd6+ {[%emt 0:00:
52]} 52. f4 {[%emt 0:00:04]} Qxc7 {[%emt 0:00:39]} 53. Qxc7 {[%emt 0:00:01]}
Ra1 {[%emt 0:00:30]} 54. Qc4 {[%emt 0:00:07]} 1-0

[Event "Luxembourg-chT 1112"]
[Site "Luxembourg"]
[Date "2012.04.10"]
[Round "8"]
[White "Istratescu, Andrei"]
[Black "Feller, Sebastien"]
[Result "1/2-1/2"]
[ECO "D58"]
[WhiteElo "2670"]
[BlackElo "2611"]
[Annotator "Marin,M"]
[PlyCount "29"]
[EventDate "2011.10.??"]
[EventType "team-tourn"]
[EventRounds "10"]
[EventCountry "LUX"]
[SourceTitle "EXT 2017"]
[Source "ChessBase"]
[SourceDate "2016.10.25"]
[SourceVersion "1"]
[SourceVersionDate "2016.10.25"]
[SourceQuality "1"]
[TimeControl "40/5400+30:1800+30"]

1. d4 d5 2. c4 e6 3. Nc3 Be7 4. Nf3 Nf6 5. Bg5 h6 6. Bh4 O-O 7. e3 b6 8. Rc1
Bb7 9. cxd5 exd5 10. Bd3 Nbd7 11. O-O c5 12. Bf5 Re8 $1 {I love the abstract
logic of this move. Once White has given the possibility of Bb5, the rook
surely belongs on e8. Moreover, the control over the e4-square is strengthened,
avoiding certain tactical problems.} 13. b3 $5 {is an interesting attempt to
restrict the mobility of the hanging pawns.} cxd4 $146 (13... Ne4 14. Bxe7 Rxe7
15. dxc5 Ndxc5 16. b4 Ne6 17. Bxe6 Rxe6 18. Nxe4 Rxe4 19. Nd4 Ba6 20. b5 Bb7
21. Qf3 Rc8 22. Qg3 Rc4 23. h3 Qc8 24. Rxc4 dxc4 25. Rc1 Re8 {1/2-1/2 (25) Bu,
X (2640)-Zhang,Z (2640) Wuxi 2006}) 14. Nxd4 Nc5 15. b4 1/2-1/2

[Event "FRA-chT Top 12"]
[Site "Brest"]
[Date "2019.05.20"]
[Round "3.4"]
[White "Istratescu, Andrei"]
[Black "Colin, Vincent"]
[Result "1-0"]
[ECO "D58"]
[WhiteElo "2555"]
[BlackElo "2383"]
[Annotator "Mueller,Karsten"]
[PlyCount "85"]
[EventDate "2019.05.18"]
[EventType "team-tourn"]
[EventRounds "11"]
[EventCountry "FRA"]
[SourceTitle "CBM 191"]
[Source "ChessBase"]
[SourceDate "2019.08.31"]
[SourceVersion "1"]
[SourceVersionDate "2019.08.31"]
[SourceQuality "1"]
[WhiteTeam "Mulhouse"]
[BlackTeam "Tours Hauts-de-France St Quentin"]
[WhiteTeamCountry "FRA"]
[BlackTeamCountry "FRA"]
[TimeControl "40/5400+30:1800+30"]

1. d4 {[%emt 0:00:00]} Nf6 {[%emt 0:00:00]} 2. c4 {[%emt 0:00:00]} e6 {[%emt 0:
00:00]} 3. Nf3 {[%emt 0:01:21]} d5 {[%emt 0:00:15]} 4. Nc3 {[%emt 0:00:39]} Be7
{[%emt 0:02:02]} 5. Bg5 {[%emt 0:06:08]} O-O {[%emt 0:03:12]} 6. e3 {[%emt 0:
03:36]} h6 {[%emt 0:00:44]} 7. Bh4 {[%emt 0:02:07]} b6 {[%emt 0:00:09]} 8. Bd3
{[%emt 0:03:42]} Bb7 {[%emt 0:06:47]} 9. O-O {[%emt 0:01:59]} Ne4 {[%emt 0:03:
45]} 10. Bg3 Nxc3 {[%emt 0:10:17]} 11. bxc3 {[%emt 0:07:29]} dxc4 {[%emt 0:00:
12]} 12. Bxc4 {[%emt 0:00:04]} Nd7 {[%emt 0:06:23]} 13. Bd3 {[%emt 0:03:33]}
Bd6 {[%emt 0:08:22]} 14. e4 {[%emt 0:07:20]} Bxg3 {[%emt 0:01:50]} 15. hxg3 {
[%emt 0:02:19]} c5 {[%emt 0:00:42]} 16. Qe2 {[%emt 0:08:23]} (16. Re1 Qc7 17.
a4 Rfd8 18. a5 e5 19. a6 Bc8 20. Bc4 Rb8 21. Qb3 Rf8 22. Bb5 cxd4 23. cxd4 exd4
24. Nxd4 Nc5 25. Qb2 Be6 26. Nf5 f6 27. Nd4 Bd7 28. Bc4+ Kh8 29. Nb5 Bxb5 30.
Bxb5 Rbd8 31. e5 fxe5 32. Qxe5 Qf7 33. Qe3 Rd6 34. Rad1 Re6 35. Qd4 Rf6 36. Re2
Qh5 37. Re5 Qf7 38. Re2 Qh5 39. Bc4 Qg6 40. Qe3 Qg4 41. Rd4 Qc8 42. Qe7 Qb8 43.
Rg4 g6 44. Rh4 g5 45. Rd4 Rg6 {Sakaev,K (2633)-Shomoev,A (2551) Dresden 2007
1-0 (84)}) 16... Qe7 {[%emt 0:06:01]} 17. a4 {[%emt 0:02:31]} cxd4 {[%emt 0:03:
21]} 18. cxd4 $14 {[%emt 0:00:16][%csl Gd4,Ge4]} Rac8 {[%emt 0:11:31]} 19. a5 {
[%emt 0:01:07]} Rc7 {[%emt 0:00:30]} 20. axb6 {[%emt 0:01:44]} axb6 {[%emt 0:
00:14]} 21. Rfe1 {[%emt 0:02:07]} (21. Ra7) 21... Rfc8 {[%emt 0:01:35]} 22. Qb2
{[%emt 0:06:27]} Rc3 {[%emt 0:03:31]} 23. Ra7 {[%emt 0:02:15]} Rxd3 {[%emt 0:
02:28]} 24. Rxb7 {[%emt 0:00:09]} Rdc3 {[%emt 0:03:11]} 25. Qxb6 {[%emt 0:02:
59]} Nxb6 {[%emt 0:04:31]} 26. Rxe7 {[%emt 0:00:09]} R3c7 {[%emt 0:00:13]} 27.
Rxc7 {[%emt 0:00:18]} Rxc7 {[%emt 0:00:07]} 28. g4 $16 {[%emt 0:00:49][%cal
Ge1d1,Gd4d5]} f6 {[%emt 0:04:08]} 29. Rd1 {[%emt 0:04:56]} Kf7 {[%emt 0:01:18]}
30. Nd2 {[%emt 0:00:46]} Na4 {[%emt 0:02:38]} 31. Kf1 {[%emt 0:07:02]} Rc2 {
[%emt 0:05:36]} 32. Nf3 {[%emt 0:03:43]} Nc3 {[%emt 0:01:10]} 33. Re1 {[%emt 0:
00:25]} Kg6 {[%emt 0:04:27]} 34. g3 {[%emt 0:01:39]} h5 $6 {[%emt 0:01:02]} 35.
gxh5+ {[%emt 0:00:28]} Kxh5 {[%emt 0:00:03]} 36. e5 {[%emt 0:00:25]} f5 {
[%emt 0:01:07]} 37. d5 $1 {[%emt 0:00:30] This sets a trap. Das stellt eine
Falle.} Ne4 $2 {[%emt 0:01:13] Not like this. So geht es nicht.} ({After Nach} 
37... Nxd5 {the counterplay is enough for a draw, e.g. reicht das Gegenspiel
zum Remis, z.B.} 38. Nd4 {[%cal Gd4c2,Gd4e6]} Rd2 39. Nxe6 Kg4 40. Nxg7 f4 41.
gxf4 Kf3 42. Kg1 Rxf2 43. Rf1 Rxf1+ 44. Kxf1 Kxf4 $11) 38. dxe6 {[%emt 0:01:16]
} Kg4 $6 {[%emt 0:03:15]} (38... Rxf2+ 39. Kg1 Ra2 (39... Rxf3 $6 40. e7 $18)
40. e7 Ra8 41. Nd4 Kg6 42. g4 Nc3 43. Re3 Nd5 44. gxf5+ Kf7 45. Rb3 Nxe7 46.
Rb7 $18) 39. e7 {[%emt 0:01:32]} Rxf2+ {[%emt 0:00:58]} (39... Rc8 40. Nd4 $18)
40. Kg1 {[%emt 0:00:02]} Kxf3 {[%emt 0:00:39]} 41. Rf1 {[%emt 0:31:55]} Rxf1+ {
[%emt 0:07:20]} 42. Kxf1 {[%emt 0:00:00]} Nxg3+ {[%emt 0:00:28]} 43. Ke1 {
[%emt 0:00:00]} 1-0

[Event "Sautron op 14th"]
[Site "Sautron"]
[Date "2014.10.25"]
[Round "5"]
[White "Terrieux, Kevin"]
[Black "Delorme, Alban"]
[Result "1-0"]
[ECO "D58"]
[WhiteElo "2409"]
[BlackElo "2317"]
[Annotator "RR"]
[PlyCount "95"]
[EventDate "2014.10.26"]
[EventType "swiss"]
[EventRounds "9"]
[EventCountry "FRA"]
[SourceTitle "EXT 2015"]
[Source "ChessBase"]
[SourceDate "2014.11.20"]
[SourceVersion "1"]
[SourceVersionDate "2014.11.20"]
[SourceQuality "1"]
[TimeControl "40/5400+30:1800+30"]
[WhiteClock "0:28:51"]
[BlackClock "0:52:22"]

1. d4 {[%emt 0:00:00]} d5 {[%emt 0:09:18]} 2. c4 {[%emt 0:00:52]} e6 {[%emt 0:
00:12]} 3. Nc3 {[%emt 0:00:12]} Be7 {[%emt 0:00:50]} 4. Nf3 {[%emt 0:00:26]}
Nf6 {[%emt 0:03:58]} 5. Bg5 {[%emt 0:00:25]} h6 {[%emt 0:02:41]} 6. Bh4 {
[%emt 0:00:08]} O-O {[%emt 0:02:13]} 7. e3 {[%emt 0:00:13]} b6 {[%emt 0:02:47]}
8. Rc1 {[%emt 0:07:59]} Bb7 {[%emt 0:00:43]} 9. cxd5 {[%emt 0:00:15]} (9. Bxf6)
9... exd5 {[%emt 0:00:33]} 10. Bd3 {[%emt 0:00:25]} Nbd7 {[%emt 0:01:15]} 11.
O-O {[%emt 0:00:42]} Ne4 {[%emt 0:02:18]} 12. Bxe7 {[%emt 0:22:26]} (12. Bg3 c5
13. Qe2 $14) 12... Qxe7 {[%emt 0:00:14]} 13. Qa4 $5 {[%emt 0:16:05][%csl Ra6,
Rc6]} c5 {[%emt 0:04:10]} 14. Ba6 {[%emt 0:02:58]} Ndf6 {[%emt 0:10:54]} 15.
Bxb7 {[%emt 0:07:46]} Qxb7 {[%emt 0:00:25]} 16. dxc5 {[%emt 0:00:38]} (16. Ne5
Rac8 17. Rfd1 c4 18. Nxe4 Nxe4 19. Qb4 a5 20. Qb5 Nd6 21. Qd7 Rfd8 22. Qxb7
Nxb7 23. a4 Nd6 24. f3 f6 25. Ng6 Kf7 26. Nf4 Nf5 27. Kf2 g5 28. Ne2 Ne7 29.
Nc3 f5 30. Rb1 Nc6 31. Na2 Nb4 32. Nc3 Rc6 33. Ke2 Re6 34. Kd2 Rde8 35. Re1 Kg6
36. Re2 h5 37. Rf1 Rd8 38. g3 g4 39. Rg2 Rde8 40. fxg4 hxg4 41. Re2 Rd8 42.
Ref2 Rf8 43. Rf4 Rff6 44. R4f2 Rf8 45. Ne2 Nd3 {Gunina,V (2448)-Kosintseva,N 
(2533) Moscow 2010 1-0 (92)}) 16... bxc5 {[%emt 0:00:47]} 17. b3 $146 {[%emt 0:
00:45]} (17. Qc2 Rac8 18. Rfd1 Rfe8 19. Qb3 Qc6 20. Nxe4 Nxe4 21. Qc2 Qe6 22.
Qd3 d4 23. exd4 Qxa2 24. Nd2 Qd5 25. Nxe4 Rxe4 26. Qa6 Rc6 27. Qxa7 c4 28. Rc3
h5 29. Rf3 h4 30. Qa8+ Kh7 31. h3 Ree6 32. Qf8 Rg6 33. Qxf7 Qg5 34. g4 hxg3 35.
Rxg3 Qh5 36. Rf1 Rcf6 37. Qxc4 Qxh3 38. Qd3 Rf5 39. Re1 Rxg3+ 40. Qxg3 Qh6 41.
Re5 Qc1+ 42. Kg2 Rxe5 43. Qxe5 Qxb2 44. Qf5+ Kg8 45. d5 Qb6 46. Kf3 Qd4 {
Gosset,A (2213)-Shirazi,K (2352) Paris 2011 1-0}) 17... Qb4 {[%emt 0:02:52]}
18. Qxb4 {[%emt 0:06:15]} cxb4 {[%emt 0:00:20]} 19. Na4 {[%emt 0:00:09]} Rac8 {
[%emt 0:00:51]} 20. Nd4 $14 {[%emt 0:00:34][%csl Gd4][%cal Gd4f5,Gd4c6,Gf2f3]}
Rfe8 {[%emt 0:09:17]} 21. f3 {[%emt 0:11:14]} Nd6 {[%emt 0:05:00]} 22. Kf2 {
[%emt 0:00:09]} Nd7 {[%emt 0:00:37]} 23. Nc6 $1 {[%emt 0:02:26]} Nf5 {[%emt 0:
04:59]} (23... h5) 24. g4 $1 {[%emt 0:01:49]} Nd6 {[%emt 0:02:53]} 25. Rfd1 {
[%emt 0:00:40]} Ne5 {[%emt 0:01:01]} 26. Nxe5 {[%emt 0:01:20]} Rxc1 {[%emt 0:
00:18]} 27. Rxc1 {[%emt 0:00:06]} Rxe5 {[%emt 0:00:02]} 28. Rc6 {[%emt 0:02:47]
} Nb5 {[%emt 0:00:44]} 29. Rc5 {[%emt 0:00:23]} a6 {[%emt 0:00:21]} 30. Rc8+ {
[%emt 0:02:46]} Kh7 {[%emt 0:00:02]} 31. Rc6 {[%emt 0:00:17]} d4 {[%emt 0:00:
09]} 32. e4 {[%emt 0:00:40]} Nc3 {[%emt 0:00:35]} 33. Rxa6 {[%emt 0:03:55]}
Nxa2 {[%emt 0:01:04]} 34. Rd6 {[%emt 0:04:18]} Nc1 {[%emt 0:01:12]} 35. Rxd4 {
[%emt 0:00:08]} Rb5 {[%emt 0:01:18]} (35... Nxb3 36. Rxb4 Nc5) 36. Rd5 {
[%emt 0:00:12]} Rxd5 {[%emt 0:02:48]} 37. exd5 {[%emt 0:00:05]} Nxb3 {[%emt 0:
00:08]} 38. Ke3 {[%emt 0:01:36]} Kg6 {[%emt 0:00:27]} 39. Nb2 {[%emt 0:01:54]}
Kf6 {[%emt 0:01:07]} 40. Nd3 {[%emt 0:00:00]} g5 {[%emt 0:00:00]} (40... Ke7
41. f4) 41. f4 {[%emt 0:01:34]} gxf4+ $6 {[%emt 0:05:10]} (41... Ke7) 42. Kxf4
{[%emt 0:00:27]} Ke7 {[%emt 0:01:09]} 43. Nxb4 {[%emt 0:03:51]} Nd4 {[%emt 0:
01:26]} 44. Nc6+ {[%emt 0:01:19]} Kd6 45. Nb4 Nb3 46. Kf5 Nd4+ 47. Kf4 Nb3 48.
h4 1-0